[Event "Titled Tuesday Blitz July 25 Early 2023"]
[White "Luukkonen, Tommi"]
[Black "Putri, Regita Desyari"]
[WhiteFideId "501808"]
[BlackFideId "7109083"]
[WhiteElo "2480"]
[BlackElo "2238"]
[Result "0-1"]
[Round "10"]
[TimeControl "180+2"]
[Date "2023.07.25"]
[WhiteClock "0:00:00"]
[BlackClock "0:00:06"]
[Board "101"]

1. e4 {[%clk 0:03:00]}  e5 {[%clk 0:02:59]} 2. Nf3 {[%clk 0:03:00]}  Nf6 {[%clk 0:02:59]} 3. d4 {[%clk 0:02:59]}  Nxe4 {[%clk 0:02:58]} 4. Bd3 {[%clk 0:02:59]}  d5 {[%clk 0:02:58]} 5. dxe5 {[%clk 0:02:59]}  Be7 {[%clk 0:02:48]} 6. Nbd2 {[%clk 0:02:58]}  Nc5 {[%clk 0:02:45]} 7. Nb3 {[%clk 0:02:57]}  Nxd3+ {[%clk 0:02:44]} 8. Qxd3 {[%clk 0:02:58]}  O-O {[%clk 0:02:34]} 9. O-O {[%clk 0:02:57]}  c5 {[%clk 0:02:29]} 10. c4 {[%clk 0:02:54]}  dxc4 {[%clk 0:02:25]} 11. Qxc4 {[%clk 0:02:54]}  Be6 {[%clk 0:02:25]} 12. Qc2 {[%clk 0:02:48]}  Na6 {[%clk 0:02:15]} 13. Rd1 {[%clk 0:02:47]}  Qb6 {[%clk 0:02:15]} 14. Be3 {[%clk 0:02:45]}  Rac8 {[%clk 0:02:11]} 15. Nbd2 {[%clk 0:02:33]}  Nb4 {[%clk 0:02:02]} 16. Qe4 {[%clk 0:02:22]}  Bd5 {[%clk 0:01:46]} 17. Qg4 {[%clk 0:02:19]}  Be6 {[%clk 0:01:43]} 18. Qg3 {[%clk 0:02:18]}  Rfd8 {[%clk 0:01:28]} 19. Ne4 {[%clk 0:02:12]}  Kh8 {[%clk 0:01:06]} 20. Bg5 {[%clk 0:02:09]}  Rxd1+ {[%clk 0:00:23]} 21. Rxd1 {[%clk 0:02:08]}  Bf8 {[%clk 0:00:24]} 22. Nd6 {[%clk 0:02:07]}  Bxd6 {[%clk 0:00:24]} 23. exd6 {[%clk 0:02:08]}  f6 {[%clk 0:00:18]} 24. Bf4 {[%clk 0:01:31]}  Rd8 {[%clk 0:00:18]} 25. h4 {[%clk 0:01:18]}  Nd5 {[%clk 0:00:18]} 26. b3 {[%clk 0:01:11]}  Qb4 {[%clk 0:00:16]} 27. Bd2 {[%clk 0:01:00]}  Qg4 {[%clk 0:00:16]} 28. Qh2 {[%clk 0:00:54]}  Kg8 {[%clk 0:00:11]} 29. Re1 {[%clk 0:00:54]}  Kf7 {[%clk 0:00:03]} 30. h5 {[%clk 0:00:55]}  h6 {[%clk 0:00:03]} 31. Rc1 {[%clk 0:00:33]}  b6 {[%clk 0:00:03]} 32. a3 {[%clk 0:00:23]}  Rd7 {[%clk 0:00:03]} 33. b4 {[%clk 0:00:23]}  cxb4 {[%clk 0:00:01]} 34. axb4 {[%clk 0:00:24]}  Qf5 {[%clk 0:00:01]} 35. Nd4 {[%clk 0:00:19]}  Qd3 {[%clk 0:00:01]} 36. Nf3 {[%clk 0:00:12]}  Nxb4 {[%clk 0:00:01]} 37. Qf4 {[%clk 0:00:08]}  Nd5 {[%clk 0:00:01]} 38. Qg3 {[%clk 0:00:08]}  Qf5 {[%clk 0:00:01]} 39. Be3 {[%clk 0:00:06]}  Qxh5 {[%clk 0:00:02]} 40. Bd4 {[%clk 0:00:03]}  Qf5 {[%clk 0:00:02]} 41. Re1 {[%clk 0:00:03]}  g5 {[%clk 0:00:02]} 42. Be3 {[%clk 0:00:03]}  Nxe3 {[%clk 0:00:02]} 43. fxe3 {[%clk 0:00:04]}  Qd5 {[%clk 0:00:02]} 44. Nd4 {[%clk 0:00:04]}  Qxd6 {[%clk 0:00:03]} 45. Qf2 {[%clk 0:00:05]}  Kg6 {[%clk 0:00:02]} 46. Rf1 {[%clk 0:00:05]}  Qe5 {[%clk 0:00:02]} 47. Nf3 {[%clk 0:00:04]}  Qc5 {[%clk 0:00:02]} 48. Nd4 {[%clk 0:00:04]}  Qe5 {[%clk 0:00:02]} 49. Nf3 {[%clk 0:00:04]}  Qf5 {[%clk 0:00:03]} 50. e4 {[%clk 0:00:04]}  Qxe4 {[%clk 0:00:03]} 51. Nxg5 {[%clk 0:00:02]}  Qf5 {[%clk 0:00:02]} 52. Qxf5+ {[%clk 0:00:02]}  Bxf5 {[%clk 0:00:03]} 53. Nf3 {[%clk 0:00:02]}  Re7 {[%clk 0:00:03]} 54. Nh4+ {[%clk 0:00:03]}  Kf7 {[%clk 0:00:02]} 55. Nxf5 {[%clk 0:00:04]}  Re5 {[%clk 0:00:03]} 56. Nxh6+ {[%clk 0:00:04]}  Kg6 {[%clk 0:00:04]} 57. Ng8 {[%clk 0:00:04]}  Rb5 {[%clk 0:00:04]} 58. Nxf6 {[%clk 0:00:03]}  Kg7 {[%clk 0:00:05]} 59. Ne4 {[%clk 0:00:03]}  a5 {[%clk 0:00:06]} 60. Rf4 {[%clk 0:00:02]}  Rb4 {[%clk 0:00:06]} 61. Rg4+ {[%clk 0:00:01]}  Kf8 {[%clk 0:00:06]} 62. Rf4+ {[%clk 0:00:01]}  Ke7 {[%clk 0:00:06]} 63. Kf2 {[%clk 0:00:02]}  a4 {[%clk 0:00:06]} 64. Ke3 {[%clk 0:00:01]}  a3 {[%clk 0:00:06]} 65. Rh4 {[%clk 0:00:02]}  a2 {[%clk 0:00:06]} 66. Rh7+ {[%clk 0:00:03]}  Ke6 {[%clk 0:00:04]} 67. Rh1 {[%clk 0:00:04]}  Rb1 {[%clk 0:00:04]} 68. Rh6+ {[%clk 0:00:04]}  Ke7 {[%clk 0:00:02]} 69. Rh7+ {[%clk 0:00:04]}  Ke6 {[%clk 0:00:02]} 70. Rh6+ {[%clk 0:00:05]}  Kd7 {[%clk 0:00:02]} 71. Rh7+ {[%clk 0:00:05]}  Kc6 {[%clk 0:00:02]} 72. Ra7 {[%clk 0:00:02]}  a1=Q {[%clk 0:00:02]} 73. Rxa1 {[%clk 0:00:02]}  Rxa1 {[%clk 0:00:02]} 74. g4 {[%clk 0:00:03]}  Ra3+ {[%clk 0:00:03]} 75. Kf4 {[%clk 0:00:03]}  Kd5 {[%clk 0:00:04]} 76. Nf6+ {[%clk 0:00:03]}  Ke6 {[%clk 0:00:04]} 77. Ne4 {[%clk 0:00:03]}  Ra4 {[%clk 0:00:04]} 78. g5 {[%clk 0:00:04]}  b5 {[%clk 0:00:04]} 79. g6 {[%clk 0:00:04]}  Ra1 {[%clk 0:00:01]} 80. Kg5 {[%clk 0:00:04]}  Rf1 {[%clk 0:00:02]} 81. g7 {[%clk 0:00:03]}  Rg1+ {[%clk 0:00:02]} 82. Kh6 {[%clk 0:00:03]}  Kf7 {[%clk 0:00:03]} 83. Ng5+ {[%clk 0:00:02]}  Kg8 {[%clk 0:00:04]} 84. Ne4 {[%clk 0:00:01]}  b4 {[%clk 0:00:04]} 85. Nf6+ {[%clk 0:00:01]}  Kf7 {[%clk 0:00:05]} 86. g8=Q+ {[%clk 0:00:01]}  Rxg8 {[%clk 0:00:05]} 87. Nxg8 {[%clk 0:00:02]}  b3 {[%clk 0:00:06]} 88. Kg5 {[%clk 0:00:02]}  b2 {[%clk 0:00:07]} 89. Nh6+ {[%clk 0:00:02]}  Ke6 {[%clk 0:00:07]} 90. Nf5 {[%clk 0:00:03]}  b1=Q {[%clk 0:00:07]} 91. Nd4+ {[%clk 0:00:04]}  Kd5 {[%clk 0:00:07]} 92. Nf3 {[%clk 0:00:04]}  Qc1+ {[%clk 0:00:06]} 93. Kg4 {[%clk 0:00:04]}  Ke4 {[%clk 0:00:05]} 94. Ng5+ {[%clk 0:00:05]}  Kd3 {[%clk 0:00:05]} 95. Nf3 {[%clk 0:00:05]}  Qc4+ {[%clk 0:00:05]} 96. Kf5 {[%clk 0:00:00]}  Qe4+ {[%clk 0:00:06]} 0-1


[Site "https://www.chess.com"]

[Event "Titled Tuesday Blitz July 25 Early 2023"]
[White "NicolaiMaxime"]
[Black "Alvarado Diaz, Alejandro"]
[BlackFideId "2276119"]
[WhiteElo "2583"]
[BlackElo "2426"]
[Result "0-1"]
[Round "10"]
[TimeControl "180+2"]
[Date "2023.07.25"]
[WhiteClock "0:00:21"]
[BlackClock "0:00:15"]
[Board "104"]

1. e4 {[%clk 0:03:00]}  c5 {[%clk 0:02:59]} 2. b3 {[%clk 0:02:59]}  Nc6 {[%clk 0:02:53]} 3. Bb2 {[%clk 0:02:59]}  e5 {[%clk 0:02:51]} 4. Bb5 {[%clk 0:02:57]}  Nge7 {[%clk 0:02:48]} 5. f4 {[%clk 0:02:57]}  exf4 {[%clk 0:02:35]} 6. Nf3 {[%clk 0:02:46]}  a6 {[%clk 0:02:31]} 7. Bxc6 {[%clk 0:02:42]}  dxc6 {[%clk 0:02:29]} 8. Nc3 {[%clk 0:02:41]}  Ng6 {[%clk 0:02:26]} 9. Ne2 {[%clk 0:02:39]}  f6 {[%clk 0:02:17]} 10. h4 {[%clk 0:02:37]}  h5 {[%clk 0:02:11]} 11. d4 {[%clk 0:02:20]}  Bg4 {[%clk 0:02:05]} 12. Qd3 {[%clk 0:02:16]}  Qd7 {[%clk 0:01:54]} 13. O-O-O {[%clk 0:01:39]}  O-O-O {[%clk 0:01:52]} 14. Nc3 {[%clk 0:01:26]}  cxd4 {[%clk 0:01:43]} 15. Na4 {[%clk 0:01:26]}  Qc7 {[%clk 0:01:38]} 16. Bxd4 {[%clk 0:01:25]}  Ba3+ {[%clk 0:01:33]} 17. Kb1 {[%clk 0:01:24]}  c5 {[%clk 0:01:32]} 18. e5 {[%clk 0:01:11]}  Nxe5 {[%clk 0:01:18]} 19. Bxe5 {[%clk 0:01:09]}  Rxd3 {[%clk 0:01:00]} 20. Bxc7 {[%clk 0:01:09]}  Rxd1+ {[%clk 0:01:00]} 21. Rxd1 {[%clk 0:01:08]}  Kxc7 {[%clk 0:00:59]} 22. c4 {[%clk 0:01:01]}  Bb4 {[%clk 0:00:55]} 23. Kb2 {[%clk 0:01:00]}  Re8 {[%clk 0:00:52]} 24. a3 {[%clk 0:01:00]}  Re2+ {[%clk 0:00:49]} 25. Kb1 {[%clk 0:00:57]}  Bxa3 {[%clk 0:00:46]} 26. Rd5 {[%clk 0:00:57]}  b6 {[%clk 0:00:35]} 27. Nc3 {[%clk 0:00:48]}  Rxg2 {[%clk 0:00:34]} 28. Nd2 {[%clk 0:00:47]}  Bb4 {[%clk 0:00:33]} 29. Nde4 {[%clk 0:00:45]}  Bxc3 {[%clk 0:00:26]} 30. Nxc3 {[%clk 0:00:46]}  f3 {[%clk 0:00:26]} 31. Rd1 {[%clk 0:00:19]}  f2 {[%clk 0:00:26]} 32. Nd5+ {[%clk 0:00:19]}  Kb7 {[%clk 0:00:23]} 33. Ne3 {[%clk 0:00:18]}  Bxd1 {[%clk 0:00:20]} 34. Nxg2 {[%clk 0:00:18]}  f1=Q {[%clk 0:00:20]} 35. Ne3 {[%clk 0:00:19]}  Qd3+ {[%clk 0:00:19]} 36. Kb2 {[%clk 0:00:19]}  Qxe3 {[%clk 0:00:20]} 37. b4 {[%clk 0:00:19]}  Qd2+ {[%clk 0:00:20]} 38. Ka1 {[%clk 0:00:19]}  Qd4+ {[%clk 0:00:18]} 39. Ka2 {[%clk 0:00:19]}  Qxc4+ {[%clk 0:00:18]} 40. Ka1 {[%clk 0:00:20]}  Qc3+ {[%clk 0:00:18]} 41. Ka2 {[%clk 0:00:21]}  Qb3+ {[%clk 0:00:15]} 42. Ka1 {[%clk 0:00:22]}  Bc2 {[%clk 0:00:15]} 43. b5 {[%clk 0:00:21]}  Qb1# {[%clk 0:00:15]} 0-1


[Site "https://www.chess.com"]

[Event "Titled Tuesday Blitz July 25 Early 2023"]
[White "Bristy Mukherjee"]
[Black "Orlov, Georgi"]
[WhiteFideId "25077325"]
[BlackFideId "2011271"]
[WhiteElo "2420"]
[BlackElo "2548"]
[Result "0-1"]
[Round "10"]
[TimeControl "180+2"]
[Date "2023.07.25"]
[WhiteClock "0:01:59"]
[BlackClock "0:01:48"]
[Board "105"]

1. Nf3 {[%clk 0:02:59]}  Nf6 {[%clk 0:02:59]} 2. g3 {[%clk 0:03:00]}  g6 {[%clk 0:02:57]} 3. c4 {[%clk 0:03:00]}  Bg7 {[%clk 0:02:58]} 4. Bg2 {[%clk 0:03:01]}  O-O {[%clk 0:02:59]} 5. O-O {[%clk 0:03:02]}  d5 {[%clk 0:02:59]} 6. Nc3 {[%clk 0:03:01]}  d4 {[%clk 0:02:58]} 7. Nb5 {[%clk 0:03:01]}  c5 {[%clk 0:02:59]} 8. e3 {[%clk 0:03:01]}  a6 {[%clk 0:02:58]} 9. Na3 {[%clk 0:03:00]}  Nc6 {[%clk 0:02:57]} 10. exd4 {[%clk 0:03:00]}  cxd4 {[%clk 0:02:57]} 11. d3 {[%clk 0:03:00]}  e5 {[%clk 0:02:56]} 12. Re1 {[%clk 0:03:00]}  Nd7 {[%clk 0:02:56]} 13. Nc2 {[%clk 0:02:58]}  a5 {[%clk 0:02:53]} 14. b3 {[%clk 0:02:57]}  Re8 {[%clk 0:02:49]} 15. Rb1 {[%clk 0:02:57]}  Nc5 {[%clk 0:02:44]} 16. a3 {[%clk 0:02:54]}  Bf5 {[%clk 0:02:42]} 17. b4 {[%clk 0:02:55]}  Nxd3 {[%clk 0:02:40]} 18. g4 {[%clk 0:02:49]}  Nxe1 {[%clk 0:02:37]} 19. gxf5 {[%clk 0:02:49]}  Nxg2 {[%clk 0:02:36]} 20. Kxg2 {[%clk 0:02:44]}  e4 {[%clk 0:02:35]} 21. Ng5 {[%clk 0:02:42]}  axb4 {[%clk 0:02:19]} 22. fxg6 {[%clk 0:02:40]}  hxg6 {[%clk 0:02:17]} 23. axb4 {[%clk 0:02:39]}  d3 {[%clk 0:02:16]} 24. Ne1 {[%clk 0:02:29]}  Ne5 {[%clk 0:02:14]} 25. c5 {[%clk 0:02:27]}  Nc4 {[%clk 0:02:09]} 26. Qb3 {[%clk 0:02:27]}  Qd5 {[%clk 0:02:08]} 27. Kg1 {[%clk 0:02:24]}  e3 {[%clk 0:02:05]} 28. Nef3 {[%clk 0:02:10]}  d2 {[%clk 0:02:02]} 29. fxe3 {[%clk 0:02:07]}  d1=Q+ {[%clk 0:02:01]} 30. Qxd1 {[%clk 0:02:06]}  Qxd1+ {[%clk 0:01:59]} 31. Kg2 {[%clk 0:02:04]}  Qc2+ {[%clk 0:01:59]} 32. Kg3 {[%clk 0:02:04]}  Qxb1 {[%clk 0:01:58]} 33. Bd2 {[%clk 0:02:03]}  Nxd2 {[%clk 0:01:58]} 34. Nxd2 {[%clk 0:02:02]}  Rxe3+ {[%clk 0:01:58]} 35. Ndf3 {[%clk 0:02:01]}  Be5+ {[%clk 0:01:53]} 36. Kg4 {[%clk 0:02:01]}  Qxb4+ {[%clk 0:01:49]} 37. Kh3 {[%clk 0:02:00]}  Qf4 {[%clk 0:01:47]} 38. c6 {[%clk 0:01:59]}  Rxf3+ {[%clk 0:01:47]} 39. Nxf3 {[%clk 0:01:58]}  Qxf3+ {[%clk 0:01:47]} 40. Kh4 {[%clk 0:01:59]}  Bf6# {[%clk 0:01:48]} 0-1


[Site "https://www.chess.com"]

[Event "Titled Tuesday Blitz July 25 Early 2023"]
[White "Souleidis, Georgios"]
[Black "Rios Escobar, Adan"]
[WhiteFideId "4206827"]
[BlackFideId "3403645"]
[WhiteElo "2527"]
[BlackElo "2413"]
[Result "1-0"]
[Round "10"]
[TimeControl "180+2"]
[Date "2023.07.25"]
[WhiteClock "0:00:12"]
[BlackClock "0:00:00"]
[Board "106"]

1. e4 {[%clk 0:03:00]}  c5 {[%clk 0:02:56]} 2. Nf3 {[%clk 0:02:59]}  d6 {[%clk 0:02:55]} 3. Bc4 {[%clk 0:02:58]}  Nf6 {[%clk 0:02:49]} 4. d3 {[%clk 0:02:58]}  e6 {[%clk 0:02:44]} 5. O-O {[%clk 0:02:58]}  Be7 {[%clk 0:02:44]} 6. Re1 {[%clk 0:02:59]}  O-O {[%clk 0:02:43]} 7. Bb3 {[%clk 0:02:59]}  Nc6 {[%clk 0:02:42]} 8. c3 {[%clk 0:02:59]}  b5 {[%clk 0:02:37]} 9. a4 {[%clk 0:02:58]}  b4 {[%clk 0:02:36]} 10. d4 {[%clk 0:02:58]}  a5 {[%clk 0:02:26]} 11. d5 {[%clk 0:02:51]}  Ne5 {[%clk 0:02:21]} 12. Nxe5 {[%clk 0:02:45]}  dxe5 {[%clk 0:02:20]} 13. dxe6 {[%clk 0:02:44]}  Bxe6 {[%clk 0:02:17]} 14. Bxe6 {[%clk 0:02:44]}  fxe6 {[%clk 0:02:18]} 15. Qb3 {[%clk 0:02:39]}  Ra6 {[%clk 0:02:10]} 16. Nd2 {[%clk 0:02:38]}  Qc7 {[%clk 0:02:05]} 17. Nc4 {[%clk 0:02:24]}  Qc6 {[%clk 0:01:57]} 18. f3 {[%clk 0:02:23]}  Kh8 {[%clk 0:01:52]} 19. Be3 {[%clk 0:02:22]}  Bd6 {[%clk 0:01:48]} 20. Red1 {[%clk 0:02:19]}  Bc7 {[%clk 0:01:49]} 21. cxb4 {[%clk 0:02:01]}  cxb4 {[%clk 0:01:47]} 22. Rac1 {[%clk 0:02:00]}  Qb7 {[%clk 0:01:40]} 23. Qd3 {[%clk 0:01:38]}  h6 {[%clk 0:01:38]} 24. b3 {[%clk 0:01:37]}  Raa8 {[%clk 0:01:26]} 25. Qe2 {[%clk 0:01:36]}  Rad8 {[%clk 0:01:21]} 26. Rxd8 {[%clk 0:01:33]}  Rxd8 {[%clk 0:01:21]} 27. Rd1 {[%clk 0:01:34]}  Qa8 {[%clk 0:01:06]} 28. Rd3 {[%clk 0:01:26]}  Nh5 {[%clk 0:01:02]} 29. Qd2 {[%clk 0:01:23]}  Rxd3 {[%clk 0:00:52]} 30. Qxd3 {[%clk 0:01:24]}  Nf4 {[%clk 0:00:51]} 31. Qd7 {[%clk 0:01:13]}  Qb8 {[%clk 0:00:15]} 32. g3 {[%clk 0:01:13]}  Ne2+ {[%clk 0:00:14]} 33. Kf2 {[%clk 0:01:13]}  Nd4 {[%clk 0:00:13]} 34. Bxd4 {[%clk 0:01:13]}  exd4 {[%clk 0:00:14]} 35. Qxd4 {[%clk 0:01:14]}  Qe8 {[%clk 0:00:05]} 36. Kg2 {[%clk 0:01:10]}  Qc6 {[%clk 0:00:05]} 37. h4 {[%clk 0:00:49]}  Kh7 {[%clk 0:00:06]} 38. Qd3 {[%clk 0:00:44]}  Kh8 {[%clk 0:00:06]} 39. Kh3 {[%clk 0:00:31]}  Qc5 {[%clk 0:00:02]} 40. Qe3 {[%clk 0:00:27]}  Qc6 {[%clk 0:00:02]} 41. Qd4 {[%clk 0:00:27]}  Kh7 {[%clk 0:00:02]} 42. Kg2 {[%clk 0:00:24]}  h5 {[%clk 0:00:02]} 43. Kh3 {[%clk 0:00:18]}  Bb8 {[%clk 0:00:02]} 44. Qb6 {[%clk 0:00:15]}  Qe8 {[%clk 0:00:02]} 45. Qxa5 {[%clk 0:00:14]}  Qd7 {[%clk 0:00:01]} 46. Qxh5+ {[%clk 0:00:14]}  Kg8 {[%clk 0:00:01]} 47. Qb5 {[%clk 0:00:12]}  Qc7 {[%clk 0:00:01]} 48. Qe8+ {[%clk 0:00:12]}  Kh7 {[%clk 0:00:01]} 49. Qh5+ {[%clk 0:00:11]}  Kg8 {[%clk 0:00:02]} 50. e5 {[%clk 0:00:10]}  Qc5 {[%clk 0:00:02]} 51. Qg4 {[%clk 0:00:10]}  Qg1 {[%clk 0:00:02]} 52. Qe4 {[%clk 0:00:09]}  Qh1+ {[%clk 0:00:01]} 53. Kg4 {[%clk 0:00:10]}  Bc7 {[%clk 0:00:01]} 54. Qa8+ {[%clk 0:00:10]}  Kh7 {[%clk 0:00:01]} 55. Qe4+ {[%clk 0:00:10]}  Kg8 {[%clk 0:00:01]} 56. a5 {[%clk 0:00:11]}  Qf1 {[%clk 0:00:01]} 57. a6 {[%clk 0:00:11]}  Qa1 {[%clk 0:00:02]} 58. Qa8+ {[%clk 0:00:11]}  Kh7 {[%clk 0:00:02]} 59. Qe4+ {[%clk 0:00:11]}  Kg8 {[%clk 0:00:02]} 60. Qb7 {[%clk 0:00:12]}  Bd8 {[%clk 0:00:01]} 61. a7 {[%clk 0:00:11]}  Be7 {[%clk 0:00:00]} 62. a8=Q+ {[%clk 0:00:12]} 1-0


[Site "https://www.chess.com"]

[Event "Titled Tuesday Blitz July 25 Early 2023"]
[White "Gontcharov, Vladislav"]
[Black "Melikhov, Evgeny V."]
[WhiteFideId "4123492"]
[BlackFideId "4122046"]
[WhiteElo "2516"]
[BlackElo "2374"]
[Result "1/2-1/2"]
[Round "10"]
[TimeControl "180+2"]
[Date "2023.07.25"]
[WhiteClock "0:00:15"]
[BlackClock "0:00:02"]
[Board "108"]

1. d4 {[%clk 0:02:59]}  Nf6 {[%clk 0:02:59]} 2. c4 {[%clk 0:02:59]}  e6 {[%clk 0:02:59]} 3. Nc3 {[%clk 0:02:58]}  Bb4 {[%clk 0:02:58]} 4. e3 {[%clk 0:02:58]}  b6 {[%clk 0:02:58]} 5. Bd3 {[%clk 0:02:55]}  Bb7 {[%clk 0:02:56]} 6. f3 {[%clk 0:02:56]}  c5 {[%clk 0:02:51]} 7. a3 {[%clk 0:02:52]}  cxd4 {[%clk 0:02:45]} 8. axb4 {[%clk 0:02:52]}  dxc3 {[%clk 0:02:45]} 9. bxc3 {[%clk 0:02:52]}  O-O {[%clk 0:02:43]} 10. Ne2 {[%clk 0:02:51]}  d6 {[%clk 0:02:43]} 11. O-O {[%clk 0:02:42]}  Nbd7 {[%clk 0:02:43]} 12. e4 {[%clk 0:02:39]}  d5 {[%clk 0:02:38]} 13. cxd5 {[%clk 0:02:31]}  exd5 {[%clk 0:02:38]} 14. exd5 {[%clk 0:02:23]}  Bxd5 {[%clk 0:02:38]} 15. Ng3 {[%clk 0:02:18]}  Ne5 {[%clk 0:02:37]} 16. Be2 {[%clk 0:02:16]}  Bc4 {[%clk 0:02:34]} 17. Bg5 {[%clk 0:02:07]}  Qxd1 {[%clk 0:02:01]} 18. Rfxd1 {[%clk 0:02:06]}  Bxe2 {[%clk 0:01:45]} 19. Nxe2 {[%clk 0:02:04]}  a5 {[%clk 0:01:37]} 20. b5 {[%clk 0:01:48]}  Rfd8 {[%clk 0:01:32]} 21. Rd4 {[%clk 0:01:41]}  Rxd4 {[%clk 0:01:25]} 22. cxd4 {[%clk 0:01:33]}  Nc4 {[%clk 0:01:25]} 23. Rc1 {[%clk 0:01:32]}  Nd6 {[%clk 0:01:25]} 24. Rc6 {[%clk 0:01:25]}  Nxb5 {[%clk 0:01:25]} 25. Rxb6 {[%clk 0:01:25]}  Nc7 {[%clk 0:01:15]} 26. Nc3 {[%clk 0:01:19]}  a4 {[%clk 0:01:06]} 27. Rb7 {[%clk 0:00:50]}  Nfe8 {[%clk 0:00:51]} 28. d5 {[%clk 0:00:46]}  f6 {[%clk 0:00:50]} 29. Bf4 {[%clk 0:00:44]}  a3 {[%clk 0:00:37]} 30. d6 {[%clk 0:00:43]}  Ne6 {[%clk 0:00:38]} 31. Be3 {[%clk 0:00:28]}  Nxd6 {[%clk 0:00:36]} 32. Rb6 {[%clk 0:00:24]}  Nc4 {[%clk 0:00:33]} 33. Rxe6 {[%clk 0:00:23]}  Nxe3 {[%clk 0:00:33]} 34. Rxe3 {[%clk 0:00:24]}  a2 {[%clk 0:00:33]} 35. Nxa2 {[%clk 0:00:24]}  Rxa2 {[%clk 0:00:33]} 36. h4 {[%clk 0:00:25]}  Kf7 {[%clk 0:00:32]} 37. Kh2 {[%clk 0:00:25]}  h5 {[%clk 0:00:31]} 38. Kg3 {[%clk 0:00:25]}  g6 {[%clk 0:00:30]} 39. Rb3 {[%clk 0:00:25]}  Ra4 {[%clk 0:00:30]} 40. Rb7+ {[%clk 0:00:24]}  Ke6 {[%clk 0:00:29]} 41. Rg7 {[%clk 0:00:24]}  Kf5 {[%clk 0:00:29]} 42. Rb7 {[%clk 0:00:24]}  Rc4 {[%clk 0:00:28]} 43. Rb6 {[%clk 0:00:23]}  Ra4 {[%clk 0:00:27]} 44. Kh3 {[%clk 0:00:23]}  Ra3 {[%clk 0:00:24]} 45. Rc6 {[%clk 0:00:22]}  Rb3 {[%clk 0:00:23]} 46. Kg3 {[%clk 0:00:20]}  Ra3 {[%clk 0:00:22]} 47. Rc5+ {[%clk 0:00:20]}  Ke6 {[%clk 0:00:21]} 48. Rc4 {[%clk 0:00:21]}  Kf5 {[%clk 0:00:20]} 49. Re4 {[%clk 0:00:20]}  Rb3 {[%clk 0:00:18]} 50. Kh3 {[%clk 0:00:20]}  g5 {[%clk 0:00:17]} 51. hxg5 {[%clk 0:00:19]}  fxg5 {[%clk 0:00:17]} 52. Ra4 {[%clk 0:00:19]}  Rc3 {[%clk 0:00:16]} 53. Ra5+ {[%clk 0:00:19]}  Kg6 {[%clk 0:00:13]} 54. Kg3 {[%clk 0:00:19]}  Rb3 {[%clk 0:00:10]} 55. Re5 {[%clk 0:00:18]}  Ra3 {[%clk 0:00:10]} 56. Kf2 {[%clk 0:00:18]}  Rb3 {[%clk 0:00:10]} 57. Re2 {[%clk 0:00:18]}  Ra3 {[%clk 0:00:10]} 58. g3 {[%clk 0:00:18]}  h4 {[%clk 0:00:10]} 59. gxh4 {[%clk 0:00:16]}  gxh4 {[%clk 0:00:10]} 60. Kg2 {[%clk 0:00:16]}  Kg5 {[%clk 0:00:09]} 61. Re5+ {[%clk 0:00:16]}  Kf4 {[%clk 0:00:07]} 62. Re4+ {[%clk 0:00:17]}  Kg5 {[%clk 0:00:07]} 63. Rg4+ {[%clk 0:00:17]}  Kh5 {[%clk 0:00:08]} 64. Rb4 {[%clk 0:00:18]}  h3+ {[%clk 0:00:06]} 65. Kg3 {[%clk 0:00:17]}  h2 {[%clk 0:00:06]} 66. Rh4+ {[%clk 0:00:16]}  Kg5 {[%clk 0:00:06]} 67. Rxh2 {[%clk 0:00:17]}  Rb3 {[%clk 0:00:07]} 68. Re2 {[%clk 0:00:17]}  Ra3 {[%clk 0:00:06]} 69. Re5+ {[%clk 0:00:17]}  Kg6 {[%clk 0:00:06]} 70. Rb5 {[%clk 0:00:17]}  Ra4 {[%clk 0:00:05]} 71. f4 {[%clk 0:00:17]}  Kf6 {[%clk 0:00:05]} 72. Kg4 {[%clk 0:00:17]}  Kf7 {[%clk 0:00:05]} 73. Rb6 {[%clk 0:00:18]}  Ra5 {[%clk 0:00:05]} 74. f5 {[%clk 0:00:14]}  Ra1 {[%clk 0:00:05]} 75. Kg5 {[%clk 0:00:13]}  Rg1+ {[%clk 0:00:05]} 76. Kf4 {[%clk 0:00:13]}  Rf1+ {[%clk 0:00:05]} 77. Ke5 {[%clk 0:00:14]}  Re1+ {[%clk 0:00:04]} 78. Kf4 {[%clk 0:00:15]}  Rf1+ {[%clk 0:00:04]} 79. Kg5 {[%clk 0:00:15]}  Rg1+ {[%clk 0:00:04]} 80. Kf4 {[%clk 0:00:15]}  Rf1+ {[%clk 0:00:02]} 1/2-1/2


[Site "https://www.chess.com"]

[Event "Titled Tuesday Blitz July 25 Early 2023"]
[White "only_strong_moves"]
[Black "Nayak Rajesh"]
[BlackFideId "35017152"]
[WhiteElo "2513"]
[BlackElo "2357"]
[Result "1-0"]
[Round "10"]
[TimeControl "180+2"]
[Date "2023.07.25"]
[WhiteClock "0:00:16"]
[BlackClock "0:00:04"]
[Board "110"]

1. d4 {[%clk 0:02:56]}  Nf6 {[%clk 0:02:58]} 2. Nc3 {[%clk 0:02:54]}  g6 {[%clk 0:02:59]} 3. Bf4 {[%clk 0:02:54]}  d5 {[%clk 0:02:58]} 4. e3 {[%clk 0:02:55]}  Bg7 {[%clk 0:02:58]} 5. h4 {[%clk 0:02:56]}  h5 {[%clk 0:02:57]} 6. Nf3 {[%clk 0:02:56]}  Bg4 {[%clk 0:02:54]} 7. Be2 {[%clk 0:02:55]}  Bxf3 {[%clk 0:02:54]} 8. Bxf3 {[%clk 0:02:54]}  c6 {[%clk 0:02:55]} 9. Qe2 {[%clk 0:02:53]}  Nbd7 {[%clk 0:02:46]} 10. O-O {[%clk 0:02:49]}  O-O {[%clk 0:02:27]} 11. b4 {[%clk 0:02:47]}  Nb6 {[%clk 0:02:18]} 12. b5 {[%clk 0:02:43]}  Nc4 {[%clk 0:02:17]} 13. Rab1 {[%clk 0:02:33]}  Qa5 {[%clk 0:02:14]} 14. Rb3 {[%clk 0:02:24]}  cxb5 {[%clk 0:01:55]} 15. e4 {[%clk 0:02:22]}  dxe4 {[%clk 0:01:51]} 16. Nxe4 {[%clk 0:02:15]}  Nxe4 {[%clk 0:01:50]} 17. Bxe4 {[%clk 0:02:10]}  a6 {[%clk 0:01:38]} 18. Bxb7 {[%clk 0:02:09]}  Rad8 {[%clk 0:01:36]} 19. c3 {[%clk 0:02:01]}  e5 {[%clk 0:01:24]} 20. dxe5 {[%clk 0:01:57]}  Rfe8 {[%clk 0:01:24]} 21. Bc6 {[%clk 0:01:41]}  Re6 {[%clk 0:01:23]} 22. Be4 {[%clk 0:01:34]}  Bxe5 {[%clk 0:01:17]} 23. Bg5 {[%clk 0:01:29]}  Rde8 {[%clk 0:01:16]} 24. Qf3 {[%clk 0:01:22]}  Bg7 {[%clk 0:00:55]} 25. Bd5 {[%clk 0:01:20]}  Ne5 {[%clk 0:00:53]} 26. Qf4 {[%clk 0:01:14]}  Rd6 {[%clk 0:00:50]} 27. Qe4 {[%clk 0:00:56]}  Rc8 {[%clk 0:00:26]} 28. f4 {[%clk 0:00:49]}  Ng4 {[%clk 0:00:23]} 29. Bxf7+ {[%clk 0:00:41]}  Kxf7 {[%clk 0:00:22]} 30. Qe7+ {[%clk 0:00:41]}  Kg8 {[%clk 0:00:21]} 31. Qxd6 {[%clk 0:00:42]}  Rxc3 {[%clk 0:00:17]} 32. Qxg6 {[%clk 0:00:34]}  Rxb3 {[%clk 0:00:16]} 33. Qe8+ {[%clk 0:00:31]}  Bf8 {[%clk 0:00:14]} 34. Qe6+ {[%clk 0:00:30]}  Kh7 {[%clk 0:00:13]} 35. Qxb3 {[%clk 0:00:26]}  Qb6+ {[%clk 0:00:13]} 36. Kh1 {[%clk 0:00:25]}  Nf2+ {[%clk 0:00:13]} 37. Rxf2 {[%clk 0:00:24]}  Qxf2 {[%clk 0:00:12]} 38. Qf7+ {[%clk 0:00:25]}  Bg7 {[%clk 0:00:11]} 39. Qxh5+ {[%clk 0:00:25]}  Kg8 {[%clk 0:00:11]} 40. Qe8+ {[%clk 0:00:26]}  Bf8 {[%clk 0:00:11]} 41. Qe6+ {[%clk 0:00:26]}  Kh7 {[%clk 0:00:11]} 42. Qxa6 {[%clk 0:00:19]}  Bc5 {[%clk 0:00:07]} 43. Qb7+ {[%clk 0:00:18]}  Kg8 {[%clk 0:00:07]} 44. Qc8+ {[%clk 0:00:18]}  Kh7 {[%clk 0:00:07]} 45. Qf5+ {[%clk 0:00:18]}  Kg8 {[%clk 0:00:07]} 46. Qg6+ {[%clk 0:00:18]}  Kf8 {[%clk 0:00:07]} 47. Qf6+ {[%clk 0:00:15]}  Kg8 {[%clk 0:00:06]} 48. Qe6+ {[%clk 0:00:16]}  Kh7 {[%clk 0:00:05]} 49. Qf7+ {[%clk 0:00:16]}  Kh8 {[%clk 0:00:04]} 50. Bf6# {[%clk 0:00:16]} 1-0


[Site "https://www.chess.com"]